fUSD/lending_fUSD_20240727
["ID","MTS","AMOUNT","RATE_DAILY","PERIOD"]
[333335665,1722060645221,-1184.36,0.00010997,2]
[333335666,1722060645230,-500.0,0.00010997,2]
[333335667,1722060645240,-923.33,0.00010997,2]
[333335668,1722060645250,-500.0,0.00010997,2]
[333335669,1722060645259,-500.0,0.00010997,2]
[333335670,1722060645268,-500.0,0.00010997,2]
[333335671,1722060645277,-500.0,0.00010997,2]
[333335672,1722060645287,-500.0,0.00010997,2]
[333335673,1722060645296,-500.0,0.00010997,2]
[333335674,1722060645305,-1678.63,0.00010997,2]
[333335675,1722060645315,-500.0,0.00010997,2]
[333335676,1722060645324,-500.0,0.00010997,2]
[333335677,1722060645333,-1694.52,0.00010997,2]
[333335678,1722060645343,-790.33,0.00010997,2]
[333335679,1722060645351,-500.0,0.00010997,2]
[333335680,1722060645362,-500.0,0.00010997,2]
[333335681,1722060645372,-1996.02,0.00010997,2]
[333335682,1722060645381,-567.23,0.00010997,2]
[333335683,1722060645390,-567.23,0.00010997,2]
[333335684,1722060645400,-500.0,0.00010997,2]
[333335685,1722060645411,-500.0,0.00010997,2]
[333335686,1722060645420,-1375.19,0.00010997,2]
[333335687,1722060645431,-500.0,0.00010997,2]
[333335688,1722060645442,-500.0,0.00010997,2]
[333335689,1722060645451,-500.0,0.00010997,2]
[333335690,1722060645460,-500.0,0.00010997,2]
[333335691,1722060645470,-1608.86,0.00010997,2]
[333335692,1722060645479,-1608.86,0.00010997,2]
[333335693,1722060645489,-1591.66,0.00010997,2]
[333335694,1722060645498,-500.0,0.00010997,2]
[333335695,1722060645508,-500.0,0.00010997,2]
[333335696,1722060645517,-500.0,0.00010997,2]
[333335697,1722060645527,-500.0,0.00010997,2]
[333335698,1722060645536,-500.0,0.00010997,2]
[333335699,1722060645546,-500.0,0.00010997,2]
[333335700,1722060645739,-1123.56,0.00010997,2]
[333335701,1722060645750,-1123.56,0.00010997,2]
[333335702,1722060645761,-500.0,0.00010997,2]
[333335703,1722060645770,-1295.48,0.00010997,2]
[333335704,1722060645780,-500.0,0.00010997,2]
[333335705,1722060645790,-500.0,0.00010997,2]
[333335706,1722060645800,-500.0,0.00010997,2]
[333335707,1722060645812,-954.02,0.00010997,2]
[333335708,1722060645821,-954.02,0.00010997,2]
[333335709,1722060645830,-521.53,0.00010997,2]
[333335710,1722060645840,-521.53,0.00010997,2]
[333335711,1722060645849,-1788.15,0.00010997,2]
[333335712,1722060645860,-500.0,0.00010997,2]
[333335713,1722060645869,-199.09584278,0.00010997,2]
[333335714,1722060645879,-3288.15,0.00010997,2]
[333335715,1722060645889,-3288.15,0.00010997,2]
[333335716,1722060645898,-596.97,0.00010997,2]
[333335717,1722060645908,-596.97,0.00010997,2]
[333335718,1722060645917,-500.0,0.00010997,2]
[333335719,1722060645927,-859.53,0.00010997,2]
[333335720,1722060645936,-1340.19,0.00010997,2]
[333335721,1722060645946,-859.53,0.00010997,2]
[333335722,1722060645955,-556.7,0.00010997,2]
[333335723,1722060645965,-513.69,0.00010997,2]
[333335724,1722060645974,-1155.6,0.00010997,2]
[333335725,1722060645985,-1155.6,0.00010997,2]
[333335726,1722060645995,-1322.59,0.00010997,2]
[333335727,1722060646004,-1322.59,0.00010997,2]
[333335728,1722060646013,-811.12,0.00010997,2]
[333335729,1722060646023,-811.12,0.00010997,2]
[333335730,1722060646032,-500.0,0.00010997,2]
[333335731,1722060646042,-836.4,0.00010997,2]
[333335732,1722060646051,-1098.13,0.00010997,2]
[333335733,1722060646061,-872.35,0.00010997,2]
[333335734,1722060646070,-872.35,0.00010997,2]
[333335735,1722060646080,-1682.89,0.00010997,2]
[333335736,1722060646089,-500.0,0.00010997,2]
[333335737,1722060646099,-500.0,0.00010997,2]
[333335738,1722060646112,-4443.7,0.00010997,2]
[333335739,1722060646121,-4443.7,0.00010997,2]
[333335740,1722060646130,-500.0,0.00010997,2]
[333335741,1722060646139,-974.61,0.00010997,2]
[333335742,1722060646150,-500.0,0.00010997,2]
[333335743,1722060646160,-500.0,0.00010997,2]
[333335744,1722060646169,-500.0,0.00010997,2]
[333335745,1722060646178,-528.48,0.00010997,2]
[333335746,1722060646189,-528.48,0.00010997,2]
[333335747,1722060646199,-1697.07,0.00010997,2]
[333335748,1722060646208,-500.0,0.00010997,2]
[333335749,1722060646218,-3699.46,0.00010997,2]
[333335750,1722060646227,-3699.46,0.00010997,2]
[333335751,1722060646236,-500.0,0.00010997,2]
[333335752,1722060646246,-1048.59,0.00010997,2]
[333335753,1722060646255,-1001.0,0.00010997,2]
[333335754,1722060646264,-1001.0,0.00010997,2]
[333335755,1722060646274,-500.0,0.00010997,2]
[333335756,1722060646283,-500.0,0.00010997,2]
[333335757,1722060646293,-665.18,0.00010997,2]
[333335758,1722060646302,-665.18,0.00010997,2]
[333335759,1722060646312,-1604.68,0.00010997,2]
[333335760,1722060646321,-500.0,0.00010997,2]
[333335761,1722060646330,-500.0,0.00010997,2]
[333335762,1722060646339,-500.0,0.00010997,2]
[333335763,1722060646349,-1299.99,0.00010997,2]
[333335764,1722060646358,-1624.05,0.00010997,2]
[333335765,1722060646368,-1299.99,0.00010997,2]
[333335766,1722060646377,-1624.05,0.00010997,2]
[333335767,1722060646387,-500.0,0.00010997,2]
[333335768,1722060646396,-500.0,0.00010997,2]
[333335769,1722060646405,-588.46,0.00010997,2]
[333335770,1722060646415,-500.0,0.00010997,2]
[333335771,1722060646424,-588.46,0.00010997,2]
[333335772,1722060646434,-500.0,0.00010997,2]
[333335773,1722060646443,-500.0,0.00010997,2]
[333335774,1722060646453,-500.0,0.00010997,2]
[333335775,1722060646462,-647.78,0.00010997,2]
[333335776,1722060646471,-255.01413148,0.00010997,2]
[333335822,1722060647191,-1676.24586852,0.00010997,2]
[333335824,1722060647203,-647.78,0.00010997,2]
[333335826,1722060647214,-500.0,0.00010997,2]
[333335828,1722060647225,-500.0,0.00010997,2]
[333335830,1722060647236,-500.0,0.00010997,2]
[333335832,1722060647246,-1259.94,0.00010997,2]
[333335834,1722060647256,-1259.94,0.00010997,2]
[333335836,1722060647266,-1516.34,0.00010997,2]
[333335838,1722060647276,-500.0,0.00010997,2]
[333335840,1722060647286,-640.89,0.00010997,2]
[333335842,1722060647295,-640.89,0.00010997,2]
[333335844,1722060647305,-1647.96,0.00010997,2]
[333335846,1722060647314,-1647.96,0.00010997,2]
[333335848,1722060647323,-500.0,0.00010997,2]
[333335850,1722060647332,-500.0,0.00010997,2]
[333335852,1722060647342,-500.0,0.00010997,2]
[333335854,1722060647351,-500.0,0.00010997,2]
[333335856,1722060647361,-429.81016197,0.00010997,2]
[333335858,1722060647370,-500.0,0.00010997,2]
[333335859,1722060647379,-971.22,0.00010997,2]
[333335860,1722060647389,-565.82,0.00010997,2]
[333335861,1722060647401,-1024.73,0.00010997,2]
[333335862,1722060647412,-565.82,0.00010997,2]
[333335863,1722060647424,-1024.73,0.00010997,2]
[333335864,1722060647434,-500.0,0.00010997,2]
[333335865,1722060647445,-500.0,0.00010997,2]
[333335866,1722060647456,-619.37,0.00010997,2]
[333335867,1722060647467,-500.0,0.00010997,2]
[333335868,1722060647477,-1374.59,0.00010997,2]
[333335869,1722060647487,-500.0,0.00010997,2]
[333335870,1722060647497,-1374.59,0.00010997,2]
[333335871,1722060647507,-500.0,0.00010997,2]
[333335872,1722060647516,-500.0,0.00010997,2]
[333335873,1722060647525,-500.0,0.00010997,2]
[333335874,1722060647534,-783.81,0.00010997,2]
[333335875,1722060647544,-1370.28,0.00010997,2]
[333335876,1722060647553,-500.0,0.00010997,2]
[333335877,1722060647562,-1370.28,0.00010997,2]
[333335878,1722060647571,-500.0,0.00010997,2]
[333335879,1722060647580,-500.0,0.00010997,2]
[333335880,1722060647589,-500.0,0.00010997,2]
[333335881,1722060647599,-500.0,0.00010997,2]
[333335882,1722060647608,-1721.63,0.00010997,2]
[333335883,1722060647618,-500.0,0.00010997,2]
[333335884,1722060647628,-738.92,0.00010997,2]
[333335885,1722060647637,-1721.63,0.00010997,2]
[333335886,1722060647647,-500.0,0.00010997,2]
[333335887,1722060647657,-500.0,0.00010997,2]
[333335888,1722060647667,-500.0,0.00010997,2]
[333335889,1722060647676,-500.0,0.00010997,2]
[333335890,1722060647686,-745.66,0.00010997,2]
[333335891,1722060647695,-745.66,0.00010997,2]
[333335892,1722060647704,-690.22,0.00010997,2]
[333335893,1722060647714,-1002.95,0.00010997,2]
[333335894,1722060647723,-500.0,0.00010997,2]
[333335895,1722060647733,-500.0,0.00010997,2]
[333335896,1722060647742,-854.41,0.00010997,2]
[333335897,1722060647751,-500.0,0.00010997,2]
[333335898,1722060647760,-854.41,0.00010997,2]
[333335899,1722060647770,-746.96,0.00010997,2]
[333335900,1722060647779,-1419.42,0.00010997,2]
[333335901,1722060647788,-1419.42,0.00010997,2]
[333335902,1722060647797,-558.39,0.00010997,2]
[333335903,1722060647807,-500.0,0.00010997,2]
[333335904,1722060647819,-1818.27,0.00010997,2]
[333335905,1722060647829,-1818.27,0.00010997,2]
[333335906,1722060647838,-500.0,0.00010997,2]
[333335907,1722060647848,-1091.53,0.00010997,2]
[333335908,1722060647858,-500.0,0.00010997,2]
[333335909,1722060647867,-500.0,0.00010997,2]
[333335910,1722060647877,-1455.93,0.00010997,2]
[333335911,1722060647887,-1455.93,0.00010997,2]
[333335912,1722060647896,-500.0,0.00010997,2]
[333335913,1722060647906,-685.1,0.00010997,2]
[333335914,1722060647916,-500.0,0.00010997,2]
[333335915,1722060647925,-500.0,0.00010997,2]
[333335916,1722060647935,-500.0,0.00010997,2]
[333335917,1722060647944,-500.0,0.00010997,2]
[333335918,1722060647954,-500.0,0.00010997,2]
[333335919,1722060647963,-600.39,0.00010997,2]
[333335920,1722060647973,-500.0,0.00010997,2]
[333335921,1722060647983,-500.0,0.00010997,2]
[333335922,1722060647992,-600.39,0.00010997,2]
[333335923,1722060648002,-292.7,0.00010997,2]
[333335924,1722060648012,-500.0,0.00010997,2]
[333335925,1722060648022,-500.0,0.00010997,2]
[333335926,1722060648031,-500.0,0.00010997,2]
[333335927,1722060648041,-500.0,0.00010997,2]
[333335928,1722060648051,-500.0,0.00010997,2]
[333335929,1722060648060,-500.0,0.00010997,2]
[333335930,1722060648070,-500.0,0.00010997,2]
[333335931,1722060648080,-635.64589414,0.00010997,2]
[333335932,1722060648089,-1192.77,0.00010997,2]
[333335933,1722060648098,-2403.16,0.00010997,2]
[333335934,1722060648111,-1192.77,0.00010997,2]
[333335935,1722060648121,-500.0,0.00010997,2]
[333335936,1722060648130,-500.0,0.00010997,2]
[333335937,1722060648140,-515.13567947,0.00010997,2]
[333335938,1722060648150,-500.0,0.00010997,2]
[333335939,1722060648159,-500.0,0.00010997,2]
[333335940,1722060648169,-644.85189502,0.00010997,2]
[333335941,1722060648179,-1528.82,0.00010997,2]
[333335942,1722060648189,-1486.95,0.00010997,2]
[333335943,1722060648200,-1486.95,0.00010997,2]
[333335944,1722060648209,-500.0,0.00010997,2]
[333335945,1722060648220,-500.0,0.00010997,2]
[333335946,1722060648229,-500.0,0.00010997,2]
[333335947,1722060648238,-500.0,0.00010997,2]
[333335948,1722060648248,-1607.77,0.00010997,2]
[333335949,1722060648258,-500.0,0.00010997,2]
[333335950,1722060648268,-1607.77,0.00010997,2]
[333335951,1722060648279,-570.0,0.00010997,2]
[333335952,1722060648289,-570.0,0.00010997,2]
[333335953,1722060648299,-570.0,0.00010997,2]
[333335954,1722060648309,-570.0,0.00010997,2]
[333335955,1722060648319,-5636.31,0.00010997,2]
[333335956,1722060648391,-5636.31,0.00010997,2]
[333335957,1722060648401,-1210.73,0.00010997,2]
[333335958,1722060648411,-1210.73,0.00010997,2]
[333335959,1722060648420,-500.0,0.00010997,2]
[333335960,1722060648430,-500.0,0.00010997,2]
[333335961,1722060648439,-500.0,0.00010997,2]
[333335962,1722060648448,-500.0,0.00010997,2]
[333335963,1722060648458,-1282.28,0.00010997,2]
[333335964,1722060648467,-1282.28,0.00010997,2]
[333335965,1722060648476,-500.0,0.00010997,2]
[333335966,1722060648486,-500.0,0.00010997,2]
[333335967,1722060648495,-954.2,0.00010997,2]
[333335968,1722060648504,-500.0,0.00010997,2]
[333335969,1722060648513,-1234.56,0.00010997,2]
[333335970,1722060648523,-1717.04,0.00010997,2]
[333335971,1722060648532,-1717.04,0.00010997,2]
[333335972,1722060648545,-500.0,0.00010997,2]
[333335973,1722060648555,-500.0,0.00010997,2]
[333335974,1722060648564,-500.0,0.00010997,2]
[333335975,1722060648573,-500.0,0.00010997,2]
[333335976,1722060648582,-500.0,0.00010997,2]
[333335977,1722060648591,-500.0,0.00010997,2]
[333335978,1722060648601,-1209.18,0.00010997,2]
[333335979,1722060648610,-500.0,0.00010997,2]
[333335980,1722060648620,-1209.18,0.00010997,2]
[333335981,1722060648629,-720.86,0.00010997,2]
[333335982,1722060648638,-756.44,0.00010997,2]
[333335983,1722060648647,-500.0,0.00010997,2]
[333335984,1722060648656,-756.44,0.00010997,2]
[333335985,1722060648665,-1329.21,0.00010997,2]
[333335986,1722060648674,-2589.92,0.00010997,2]
[333335987,1722060648683,-1510.28,0.00010997,2]
[333335988,1722060648693,-500.0,0.00010997,2]
[333335989,1722060648702,-500.0,0.00010997,2]
[333335990,1722060648712,-500.0,0.00010997,2]
[333335991,1722060648721,-736.67,0.00010997,2]
[333335992,1722060648731,-736.67,0.00010997,2]
[333335993,1722060648740,-671.48,0.00010997,2]
[333335994,1722060648749,-671.48,0.00010997,2]
[333335995,1722060648759,-500.0,0.00010997,2]
[333335996,1722060648768,-725.73,0.00010997,2]
[333335997,1722060648778,-725.73,0.00010997,2]
[333335998,1722060648787,-725.73,0.00010997,2]
[333335999,1722060648797,-725.73,0.00010997,2]
[333336000,1722060648807,-1294.66,0.00010997,2]
[333336001,1722060648816,-1294.66,0.00010997,2]
[333336002,1722060648825,-957.09,0.00010997,2]
[333336003,1722060648835,-500.0,0.00010997,2]
[333336004,1722060648845,-1977.46,0.00010997,2]
[333336005,1722060648854,-500.0,0.00010997,2]
[333336006,1722060648864,-500.0,0.00010997,2]
[333336007,1722060648874,-500.0,0.00010997,2]
[333336008,1722060648883,-500.0,0.00010997,2]
[333336009,1722060648893,-157.072714,0.00010997,2]
[333336010,1722060648902,-543.5844273,0.00010997,2]
[333336011,1722060648912,-500.0,0.00010997,2]
[333336012,1722060648922,-500.0,0.00010997,2]
[333336013,1722060648932,-157.072714,0.00010997,2]
[333336014,1722060648941,-500.0,0.00010997,2]
[333336015,1722060648951,-157.072714,0.00010997,2]
[333336016,1722060648961,-157.072714,0.00010997,2]
[333336017,1722060648970,-157.072714,0.00010997,2]
[333336018,1722060648980,-157.072714,0.00010997,2]
[333336019,1722060648989,-157.072714,0.00010997,2]
[333336020,1722060648998,-157.072714,0.00010997,2]
[333336021,1722060649008,-157.072714,0.00010997,2]
[333336022,1722060649018,-157.072714,0.00010997,2]
[333336023,1722060649029,-894.46,0.00010997,2]
[333336024,1722060649038,-894.46,0.00010997,2]
[333336025,1722060649048,-157.072714,0.00010997,2]
[333336026,1722060649057,-643.24,0.00010997,2]
[333336027,1722060649067,-643.24,0.00010997,2]
[333336028,1722060649076,-157.072714,0.00010997,2]
[333336029,1722060649086,-643.24,0.00010997,2]
[333336030,1722060649095,-643.24,0.00010997,2]
[333336031,1722060649106,-157.072714,0.00010997,2]
[333336032,1722060649118,-157.072714,0.00010997,2]
[333336033,1722060649128,-157.072714,0.00010997,2]
[333336034,1722060649138,-157.072714,0.00010997,2]
[333336035,1722060649147,-500.0,0.00010997,2]
[333336036,1722060649157,-157.072714,0.00010997,2]
[333336037,1722060649166,-500.0,0.00010997,2]
[333336038,1722060649175,-500.0,0.00010997,2]
[333336039,1722060649185,-500.0,0.00010997,2]
[333336040,1722060649195,-157.072714,0.00010997,2]
[333336041,1722060649204,-992.4,0.00010997,2]
[333336042,1722060649213,-157.072714,0.00010997,2]
[333336043,1722060649222,-157.072714,0.00010997,2]
[333336044,1722060649231,-157.072714,0.00010997,2]
[333336045,1722060649240,-500.0,0.00010997,2]
[333336046,1722060649250,-157.072714,0.00010997,2]
[333336047,1722060649259,-500.0,0.00010997,2]
[333336048,1722060649268,-500.0,0.00010997,2]
[333336049,1722060649280,-500.0,0.00010997,2]
[333336050,1722060649289,-500.0,0.00010997,2]
[333336051,1722060649300,-983.96,0.00010997,2]
[333336052,1722060649310,-983.96,0.00010997,2]
[333336053,1722060649320,-500.0,0.00010997,2]
[333336054,1722060649330,-501.4,0.00010997,2]
[333336055,1722060649340,-638.81,0.00010997,2]
[333336056,1722060649349,-596.64,0.00010997,2]
[333336057,1722060649357,-500.0,0.00010997,2]
[333336058,1722060649367,-500.0,0.00010997,2]
[333336059,1722060649376,-569.35,0.00010997,2]
[333336060,1722060649387,-569.35,0.00010997,2]
[333336061,1722060649397,-569.35,0.00010997,2]
[333336062,1722060649407,-500.0,0.00010997,2]
[333336063,1722060649417,-569.35,0.00010997,2]
[333336064,1722060649427,-500.0,0.00010997,2]
[333336065,1722060649437,-500.0,0.00010997,2]
[333336066,1722060649448,-1365.5,0.00010997,2]
[333336067,1722060649459,-150.072714,0.00010997,2]
[333336068,1722060649468,-871.49,0.00010997,2]
[333336069,1722060649479,-1136.6,0.00010997,2]
[333336070,1722060649490,-871.49,0.00010997,2]
[333336071,1722060649500,-500.0,0.00010997,2]
[333336072,1722060649511,-1204.62,0.00010997,2]
[333336073,1722060649520,-500.0,0.00010997,2]
[333336074,1722060649531,-150.072714,0.00010997,2]
[333336075,1722060649541,-500.0,0.00010997,2]
[333336076,1722060649551,-150.072714,0.00010997,2]
[333336077,1722060649561,-500.0,0.00010997,2]
[333336078,1722060649571,-500.0,0.00010997,2]
[333336079,1722060649582,-500.0,0.00010997,2]
[333336080,1722060649592,-150.072714,0.00010997,2]
[333336081,1722060649602,-500.0,0.00010997,2]
[333336082,1722060649612,-500.0,0.00010997,2]
[333336083,1722060649622,-500.0,0.00010997,2]
[333336084,1722060649631,-500.0,0.00010997,2]
[333336085,1722060649640,-500.0,0.00010997,2]
[333336086,1722060649650,-150.072714,0.00010997,2]
[333336087,1722060649659,-617.79,0.00010997,2]
[333336088,1722060649669,-841.47,0.00010997,2]
[333336089,1722060649679,-150.072714,0.00010997,2]
[333336090,1722060649689,-500.0,0.00010997,2]
[333336091,1722060649698,-500.0,0.00010997,2]
[333336092,1722060649708,-333.46,0.00010997,2]
[333336093,1722060649717,-500.0,0.00010997,2]
[333336094,1722060649727,-152.072714,0.00010997,2]
[333336095,1722060649737,-500.0,0.00010997,2]
[333336096,1722060649748,-500.0,0.00010997,2]
[333336097,1722060649759,-500.0,0.00010997,2]
[333336098,1722060649769,-366.05,0.00010997,2]
[333336099,1722060649780,-500.0,0.00010997,2]
[333336100,1722060649791,-500.0,0.00010997,2]
[333336101,1722060649802,-500.0,0.00010997,2]
[333336102,1722060649811,-199.94426896,0.00010997,2]
[333336103,1722060649821,-542.61,0.00010997,2]
[333336104,1722060649831,-500.0,0.00010997,2]
[333336105,1722060649842,-500.0,0.00010997,2]
[333336106,1722060649853,-169.7,0.00010997,2]
[333336107,1722060649864,-520.01,0.00010997,2]
[333336108,1722060649874,-500.0,0.00010997,2]
[333336109,1722060649884,-500.0,0.00010997,2]
[333336110,1722060649894,-500.0,0.00010997,2]
[333336111,1722060649904,-500.0,0.00010997,2]
[333336112,1722060649914,-500.0,0.00010997,2]
[333336113,1722060649924,-362.91,0.00010997,2]
[333336114,1722060649934,-951.8,0.00010997,2]
[333336115,1722060649945,-1297.54,0.00010997,2]
[333336116,1722060649956,-1096.46,0.00010997,2]
[333336117,1722060649967,-500.0,0.00010997,2]
[333336118,1722060649977,-1386.26,0.00010997,2]
[333336119,1722060649987,-500.0,0.00010997,2]
[333336120,1722060649997,-500.0,0.00010997,2]
[333336121,1722060650008,-571.46,0.00010997,2]
[333336122,1722060650018,-500.0,0.00010997,2]
[333336123,1722060650029,-500.0,0.00010997,2]
[333336124,1722060650038,-500.0,0.00010997,2]
[333336125,1722060650047,-553.89,0.00010997,2]
[333336126,1722060650055,-686.77,0.00010997,2]
[333336127,1722060650063,-876.13,0.00010997,2]
[333336128,1722060650073,-500.0,0.00010997,2]
[333336129,1722060650082,-500.0,0.00010997,2]
[333336130,1722060650091,-609.35,0.00010997,2]
[333336131,1722060650100,-500.0,0.00010997,2]
[333336132,1722060650114,-602.74996255,0.00010997,2]
[333336133,1722060650123,-500.0,0.00010997,2]
[333336134,1722060650132,-500.0,0.00010997,2]
[333336135,1722060650141,-500.0,0.00010997,2]
[333336136,1722060650150,-500.0,0.00010997,2]
[333336137,1722060650159,-500.0,0.00010997,2]
[333336138,1722060650169,-500.0,0.00010997,2]
[333336139,1722060650179,-195.48,0.00010997,2]
[333336140,1722060650190,-500.0,0.00010997,2]
[333336141,1722060650200,-692.56,0.00010997,2]
[333336142,1722060650210,-500.0,0.00010997,2]
[333336143,1722060650220,-500.0,0.00010997,2]
[333336144,1722060650230,-574.1649593,0.00010997,2]
[333336145,1722060650239,-500.0,0.00010997,2]
[333336146,1722060650248,-500.0,0.00010997,2]
[333336147,1722060650257,-202.42300689,0.00010997,2]
[333336148,1722060650280,-297.57699311,0.00010997,2]
[333336149,1722060650289,-500.0,0.00010997,2]
[333336150,1722060650298,-334.01529285,0.00010997,2]
[333336151,1722060650317,-165.98470715,0.00010997,2]
[333336152,1722060650327,-500.0,0.00010997,2]
[333336153,1722060650335,-258.91529185,0.00010997,2]
[333336154,1722060650347,-1085.80470815,0.00010997,2]
[333336155,1722060650357,-500.0,0.00010997,2]
[333336156,1722060650366,-57.09479185,0.00010997,2]
[333336157,1722060650377,-442.90520815,0.00010997,2]
[333336158,1722060650386,-899.27,0.00010997,2]
[333336159,1722060650396,-500.0,0.00010997,2]
[333336160,1722060650405,-350.77,0.00010997,2]
[333336161,1722060650414,-321.10479185,0.00010997,2]
[333336162,1722060650425,-178.89520815,0.00010997,2]
[333336163,1722060650435,-500.0,0.00010997,2]
[333336164,1722060650445,-489.67726772,0.00010997,2]
[333336165,1722060650457,-10.32273228,0.00010997,2]
[333336166,1722060650467,-500.0,0.00010997,2]
[333336167,1722060650477,-142.72226773,0.00010997,2]
[333336168,1722060650728,-169.84707352,0.0001,2]
[333336169,1722060650739,-357.27773227,0.00010997,2]
[333336170,1722060650749,-500.0,0.00010997,2]
[333336171,1722060650759,-500.0,0.00010997,2]
[333336172,1722060650769,-500.0,0.00010997,2]
[333336173,1722060650781,-302.35,0.00010997,2]
[333336174,1722060650791,-895.26282137,0.00010997,2]
[333336175,1722060650804,-728.01717863,0.00010997,2]
[333336176,1722060650814,-500.0,0.00010997,2]
[333336177,1722060650824,-500.0,0.00010997,2]
[333336178,1722060650835,-500.0,0.00010997,2]
[333336179,1722060650845,-1695.74,0.00010997,2]
[333336180,1722060650855,-500.0,0.00010997,2]
[333336181,1722060650864,-500.0,0.00010997,2]
[333336182,1722060650874,-500.0,0.00010997,2]
[333336183,1722060650884,-500.0,0.00010997,2]
[333336184,1722060650894,-500.0,0.00010997,2]
[333336185,1722060650904,-1151.21,0.00010997,2]
[333336186,1722060650914,-1240.02,0.00010997,2]
[333336187,1722060650923,-500.0,0.00010997,2]
[333336188,1722060650933,-500.0,0.00010997,2]
[333336189,1722060650943,-500.0,0.00010997,2]
[333336190,1722060650952,-1613.14,0.00010997,2]
[333336191,1722060650962,-500.0,0.00010997,2]
[333336192,1722060650972,-500.0,0.00010997,2]
[333336193,1722060650982,-420.27282137,0.00010997,2]
[333336194,1722060650998,-79.72717863,0.00010997,2]
[333336195,1722060651008,-184.2288748,0.00010997,2]
[333336196,1722060651021,-300.0,0.00010997,2]
[333336197,1722060651034,-15.7711252,0.00010997,2]
[333336198,1722060651044,-286.2288748,0.00010997,2]
[333336199,1722060651055,-213.7711252,0.00010997,2]
[333336200,1722060651065,-502.4559007,0.00010997,2]
[333336201,1722060651075,-136.79818415,0.00010997,2]
[333336202,1722060651093,-744.5,0.00010521,2]
[333336203,1722060651106,-105.54,0.00010521,2]
[333336204,1722060651124,-409.63181585,0.00010997,2]
[333336205,1722060651133,-1060.41,0.00010997,2]
[333336206,1722060651143,-500.0,0.00010997,2]
[333336207,1722060651152,-1297.2,0.00010997,2]
[333336208,1722060651163,-1830.18,0.00010997,2]
[333336209,1722060651172,-500.0,0.00010997,2]
[333336210,1722060651183,-500.0,0.00010997,2]
[333336211,1722060651193,-500.0,0.00010997,2]
[333336212,1722060651203,-500.0,0.00010997,2]
[333336213,1722060651213,-500.0,0.00010997,2]
[333336214,1722060651223,-500.0,0.00010997,2]
[333336215,1722060651232,-500.0,0.00010997,2]
[333336216,1722060651242,-500.0,0.00010997,2]
[333336217,1722060651252,-1558.99,0.00010997,2]
[333336218,1722060651262,-500.0,0.00010997,2]
[333336219,1722060651272,-919.95,0.00010997,2]
[333336220,1722060651282,-500.0,0.00010997,2]
[333336221,1722060651292,-500.0,0.00010997,2]
[333336222,1722060651302,-107.33158274,0.00010997,2]
[333336223,1722060651315,-392.66841726,0.00010997,2]
[333336224,1722060651325,-179.54158274,0.00010997,2]
[333336225,1722060651336,-320.45841726,0.00010997,2]
[333336226,1722060651346,-500.0,0.00010997,2]
[333336227,1722060651355,-500.0,0.00010997,2]